Cogmind - Beta 13 @@@ ROGUE MODE // 2024.03.17 @ 03:37:27 Player: Infomantis Result: Destroyed by Piercing Trap Performance ------------- Evolutions (0) 0 Regions Visited (2) 400 Robots Destroyed (32) 160 Value Destroyed (658) 658 Prototype IDs (10) 200 Alien Tech Used (0) 0 Bonus (0) 0 TOTAL SCORE: 1418 Bonus ------- None Cogmind --------- Core Integrity 0/250 Matter 300/300 Energy 249/250 System Corruption 0% Temperature Cool (0) Movement Rolling (130) Ox2 Location -10/Subcaves Parts ------- > --- POWER (1) -------- Ion Engine > --- PROPULSION (2) --- Compact Wheel Subdweller Monowheel > --- UTILITY (2) ------ Large Storage Unit Sensor Array > --- WEAPON (2) ------- Makeshift Laser Subdweller Beam Cannon > --- INVENTORY (15) --- Arachnoskeleton Arachnoskeleton Hardened Light Armor Plating Hardened Light Armor Plating Cobbler Unit Heavy EM Pulse Gun Subdweller Machine Gun Rocket Launcher Rocket Launcher Mining Laser Peak State ------------ > --- POWER ------------ Ion Engine > --- PROPULSION ------- Compact Wheel Subdweller Monowheel > --- UTILITY ---------- Large Storage Unit Hardened Light Armor Plating > --- WEAPON ----------- Makeshift Laser Subdweller Beam Cannon > --- INVENTORY -------- Arachnoskeleton Sensor Array Hardened Light Armor Plating Hardened Light Armor Plating Cobbler Unit Heavy EM Pulse Gun Autogun Subdweller Machine Gun Rocket Launcher Rocket Launcher Rocket Launcher Mining Laser [Rating: 17] Favorites ----------- Power Ion Engine Engine Ion Engine Propulsion Light Treads Treads Light Treads Wheel Compact Wheel Utility Large Storage Unit Device Seismic Detector Storage Large Storage Unit Protection Hardened Light Armor Plating Weapon Autogun Energy Gun Heavy EM Pulse Gun Energy Cannon Subdweller Beam Cannon Ballistic Gun Autogun Launcher Rocket Launcher Special Weapon Mining Laser Build | -11 -10 -10 ------- Run | Yrd Mat Sub Slots Evolved . | . . . Power . | . . . Propulsion . | . . . Utility . | . . . Weapon . | . . . Parts Attached 41 | 8 17 16 Power 3 | 1 1 1 Engine 3 | 1 1 1 Core . | . . . Reactor . | . . . Propulsion 10 | 2 5 3 Treads 8 | 2 5 1 Leg . | . . . Wheel 2 | . . 2 Hover . | . . . Flight . | . . . Utility 9 | 2 2 5 Device 4 | 1 . 3 Storage 2 | 1 1 . Processor . | . . . Hackware . | . . . Protection 3 | . 1 2 Artifact . | . . . Weapon 19 | 3 9 7 Energy Gun 8 | 1 3 4 Energy Cannon 1 | . . 1 Ballistic Gun 6 | 2 3 1 Ballistic Cannon . | . . . Launcher 1 | . . 1 Special Weapon 3 | . 3 . Impact Weapon . | . . . Slashing Weapon . | . . . Piercing Weapon . | . . . Special Melee Weapon . | . . . Unidentified Prototypes . | . . . Parts Lost 5 | . . 5 Power 1 | . . 1 Propulsion 2 | . . 2 Utility 1 | . . 1 Weapon 1 | . . 1 Highest Loss Streak 3 | . . 3 To Critical Strikes . | . . . Average Slot Usage (%) 99 | . 99 99 Engine 14 | . 14 14 Treads 20 | . 27 10 Wheel 7 | . . 17 Device 12 | . 11 13 Storage 14 | . 14 14 Protection 1 | . 2 . Energy Gun 12 | . 7 19 Energy Cannon 3 | . . 8 Ballistic Gun 10 | . 17 . Special Weapon 1 | . 2 . Naked Turns . | . . . Heaviest Build 42 | 11 36 42 Greatest Support 40 | 40 40 40 Greatest Overweight (x) 2 | . 1 2 Average Overweight (x) . | . . 1 Largest Inventory Capacity 15 | 8 15 15 Average Capacity 13 | 7 12 15 Most Carried 15 | 8 15 15 Average Carried 12 | 4 11 14 Final Capacity 15 | 8 15 15 Final Carried 15 | 8 15 15 Class Distribution -------------------- 100% | Mutant Dominant Class ---------------- Mutant | -10/Materials Mutant | -10/Subcaves Resources | -11 -10 -10 ----------- Run | Yrd Mat Sub Matter Collected 897 | 300 387 210 Remotely . | . . . Salvage Created 1096 | 151 574 371 Parts 83 | 17 38 28 Haulers Intercepted 1 | . 1 . Recyclers Shooed 1 | . 1 . Parts Field Recycled . | . . . Retrieved Matter . | . . . Parts Self-Destructed . | . . . Prevented . | . . . Kills | -11 -10 -10 ------- Run | Yrd Mat Sub Combat Hostiles Destroyed 19 | . 12 7 Guns 15 | . 12 3 Cannons 2 | . . 2 AOE 1 | . . 1 Classes Destroyed 10 | 2 6 2 Worker 1 | . 1 . Builder 2 | . 2 . Tunneler 4 | 4 . . Hauler 1 | . 1 . Recycler 2 | 1 1 . Watcher 3 | . 3 . Swarmer 6 | . 6 . Grunt 6 | . 6 . Cobbler 1 | . . 1 Subdweller 7 | . . 7 Best Kill Streak 4 | 3 4 3 Combat Bots Only 3 | . 3 3 Max Kills in Single Turn 2 | 1 2 1 Gunslinging 1 | . 1 . Exploded 1 | . . 1 Melee . | . . . Uniques/NPCs Destroyed . | . . . Combat | -11 -10 -10 -------- Run | Yrd Mat Sub Hostile Shots Fired 82 | . 60 22 Missed 12 | . 9 3 Damage Taken 1015 | . 514 501 Core 252 | . 132 120 Absorbed by Shields . | . . . Core Remaining (%) 100 | 100 . . Volleys Fired 101 | 10 61 30 Largest 2 | 2 2 2 Hottest 130 | 40 123 130 Shots Fired 183 | 20 110 53 Gun 154 | 20 97 37 Cannon 15 | . . 15 Launcher 1 | . . 1 Special 13 | . 13 . Kinetic 89 | 20 69 . Thermal 59 | . 41 18 Explosive 1 | . . 1 Electromagnetic 34 | . . 34 Robot Hit Streak 15 | 6 11 15 Robot Miss Streak 5 | 2 5 2 Penetration Max . | . . . Secondary Targets 3 | . 3 . Max Gunslinging Chain 1 | . 1 . Shots Hit Robots 118 | 13 66 39 Core Hits 47 | 10 24 13 Critical Kills . | . . . Critical Parts Destroyed . | . . . Critical Strikes 6 | . 3 3 Burn 3 | . 3 . Corrupt 3 | . . 3 Melee Attacks . | . . . Impact . | . . . Slashing . | . . . Piercing . | . . . Sneak Attacks . | . . . Combat Hostiles . | . . . Follow-up Attacks . | . . . Damage Inflicted 1875 | 109 1037 729 Guns 1533 | 109 1009 415 Cannons 215 | . . 215 Explosions 99 | . . 99 Melee . | . . . Ramming 4 | . 4 . Kinetic 882 | 109 773 . Thermal 508 | . 260 248 Explosive 99 | . . 99 Electromagnetic 382 | . . 382 Impact . | . . . Slashing . | . . . Piercing . | . . . Highest Corruption . | . . . Average Corruption . | . . . Corruption Purged . | . . . Corruption Blocked . | . . . Overload Shots . | . . . Overflow Damage . | . . . Projectiles . | . . . Explosions . | . . . Melee . | . . . Knockbacks . | . . . Impact . | . . . Kinetic . | . . . Secondary . | . . . Self-Inflicted Damage . | . . . Shots . | . . . Rammed . | . . . Targets Rammed 1 | . 1 . Kicked . | . . . Crushed 1 | . 1 . Highest Temperature 211 | . 211 72 Average Temperature 55 | . 60 24 Received Heat Transfer 240 | . 198 42 Siege Activations . | . . . Robots Corrupted 1 | . . 1 Combat Hostiles 1 | . . 1 Parts Fried 2 | . . 2 Impact Corruptions . | . . . Robots Melted . | . . . Combat Hostiles . | . . . Parts Melted 1 | . 1 . Heat Transferred 1345 | . 975 370 Parts Sabotaged . | . . . Parts Stolen . | . . . Parts Stripped . | . . . Power Chain Reactions . | . . . Alert | -11 -10 -10 ------- Run | Yrd Mat Sub Peak Influence 123 | 25 123 . Initial 16 | . 16 . Average 55 | 10 59 . Maximum Alert Level . | . . . Low Security (%) 100 | 100 100 . Level 1 . | . . . Level 2 . | . . . Level 3 . | . . . Level 4 . | . . . Level 5 . | . . . High Security . | . . . Max Security . | . . . Squads Dispatched 1 | . 1 . Investigation 1 | . 1 . Extermination . | . . . Reinforcement . | . . . Assault . | . . . Garrison . | . . . Intercept . | . . . Searches Triggered . | . . . Construction Impeded . | . . . Haulers Reinforced . | . . . Active Scanning Responses . | . . . Cargo Convoy Interrupts . | . . . Stealth | -11 -10 -10 --------- Run | Yrd Mat Sub Distress Signals 2 | . 2 . Communications Jammed . | . . . Distress Signals . | . . . Times Spotted 27 | . 22 5 Peak Tracking Total 4 | . 4 2 Tactical Retreats 1 | . 1 . Traps | -11 -10 -10 ------- Run | Yrd Mat Sub Traps Triggered 6 | . 3 3 Indirectly . | . . . Trap Hack Attempts . | . . . Triggered . | . . . Disarmed . | . . . Reprogrammed . | . . . Reused . | . . . Traps Extracted . | . . . Installed . | . . . Triggered . | . . . Machines | -11 -10 -10 ---------- Run | Yrd Mat Sub Machines Disabled 1 | . . 1 Max in Single Turn 1 | . . 1 Machines Repaired . | . . . Machines Dismantled . | . . . Machines Sabotaged . | . . . Overloaded Fab Kills . | . . . Hacking | -11 -10 -10 --------- Run | Yrd Mat Sub Machines Accessed 8 | . 7 1 Terminals 7 | . 7 . Fabricators . | . . . Repair Stations . | . . . Recycling Units . | . . . Scanalyzers . | . . . Garrison Access . | . . . Total Hacks 20 | . 19 1 Successful 13 | . 12 1 Failed 7 | . 7 . Catastrophic . | . . . Database Lockouts . | . . . Manual 16 | . 16 . Terminals 19 | . 19 . Fabricators . | . . . Repair Stations . | . . . Recycling Units . | . . . Scanalyzers . | . . . Garrison Access . | . . . Terminal Hacks 5 | . 4 1 Terminal Index 1 | . 1 . Transport Status 1 | . 1 . Registered Components 1 | . 1 . Zone Layout 1 | . 1 . Derelict Proto ID Bank 1 | . . 1 Fabricator Hacks . | . . . Repair Station Hacks . | . . . Recycling Unit Hacks . | . . . Scanalyzer . | . . . Garrison Access Hacks . | . . . Unauthorized Hacks 8 | . 8 . Terminals 8 | . 8 . Botnet 7 | . 7 . Operators 1 | . 1 . Fabricators . | . . . Repair Stations . | . . . Recycling Units . | . . . Scanalyzers . | . . . Garrison Access . | . . . Data Cores Recovered . | . . . Used . | . . . Hacking Detections 5 | . 5 . Full Trace Events 1 | . 1 . Feedback Events . | . . . Feedback Blocked . | . . . Robot Schematics Acquired . | . . . Robots Built . | . . . Authchips . | . . . Time . | . . . Total Robot Build Rating . | . . . Part Schematics Acquired . | . . . Parts Built . | . . . Authchips . | . . . Time . | . . . Total Part Build Rating . | . . . Parts Repaired . | . . . Time . | . . . Parts Recycled . | . . . Recycled Matter . | . . . Retrieved Matter . | . . . Retrieved Components . | . . . Parts Scanalyzed . | . . . Part Schematics Acquired . | . . . Parts Damaged . | . . . Bothacking | -11 -10 -10 ------------ Run | Yrd Mat Sub Used RIF Installer . | . . . Robots Hacked . | . . . Non-combat . | . . . Combat . | . . . Robot Hacks Applied . | . . . Relay Couplers Released . | . . . Fabnet Peak Effective % . | . . . Robots Rewired . | . . . Allies Hacked . | . . . Hacks Repelled . | . . . Allies | -11 -10 -10 -------- Run | Yrd Mat Sub Total Allies . | . . . Largest Group . | . . . Highest-Rated Group . | . . . Highest-Rated Ally . | . . . Total Orders . | . . . Ally Attacks . | . . . Total Damage . | . . . Kills . | . . . Allies Corrupted . | . . . Allies Melted . | . . . Intel | -11 -10 -10 ------- Run | Yrd Mat Sub Robot Analysis Total . | . . . Derelict Logs Recovered 1 | . . 1 Drone Launches . | . . . Drone Recoveries . | . . . Exploration | -11 -10 -10 ------------- Run | Yrd Mat Sub Turns Passed 3080 | 157 1719 1204 Spaces Moved 1613 | 73 902 638 Core 5 | 5 . . Treads 1180 | 68 902 210 Legs . | . . . Wheels 428 | . . 428 Hover . | . . . Flight . | . . . Fastest Speed 50 | 50 160 115 Average Speed 151 | 152 160 138 Slowest Speed 240 | 160 240 160 Overloaded Moves . | . . . Propulsion Burnouts . | . . . Robots Hopped . | . . . Cave-ins Triggered . | . . . Exploration Rate (%) 42 | 4 88 36 Regions Visited 2 Branch Regions 1 Pre-discovered Areas . | . . . Known Exits Taken . | . . . Unknown Exits Taken 2 | 1 1 . Scrap Searched 2 | . . 2 Spaces Dug 3 | . 3 . Terrain Destroyed 16 | . 4 12 Melee . | . . . Projectile 6 | . 4 2 AOE 10 | . . 10 Terrain Rammed . | . . . Walls Destroyed . | . . . Machines Disabled . | . . . Actions | -11 -10 -10 --------- Run | Yrd Mat Sub Total 2063 | 100 1062 901 Wait 245 | . 43 202 Move 1612 | 72 902 638 Hop . | . . . Pick Up 37 | 10 20 7 Fast Attach 12 | 5 6 1 Attach 6 | 2 . 4 Detach . | . . . Swap 23 | 1 11 11 Drop 27 | . 19 8 Fire 101 | 10 61 30 Melee . | . . . Ram . | . . . Kick . | . . . Crush . | . . . Escape Stasis . | . . . Rewire . | . . . Trap . | . . . Miscellaneous . | . . . Route ------- -11/Scrapyard -10/Materials (discovered 4 exits: [*Mat x3] / *Sub) -10/Subcaves History --------- Turn | Location | Event 43 | -11/Scrapyard | Discovered new exit (range 16) 158 | -11/Scrapyard | Entered Materials 329 | -10/Materials | Build established: Mutant 578 | -10/Materials | Discovered new exit (range 6) 1005 | -10/Materials | Discovered new exit (range 15) 1659 | -10/Materials | Discovered new exit (range 12) 1788 | -10/Materials | Core integrity fell below 50% 1871 | -10/Materials | Discovered new exit (range 3) 1877 | -10/Materials | Entered Subcaves 2133 | -10/Subcaves | Lost 3 parts (1p1n1w) 2331 | -10/Subcaves | A Subdweller sparked back to life 2331 | -10/Subcaves | A Subdweller sparked back to life 2376 | -10/Subcaves | Found Prototype Leg 2644 | -10/Subcaves | A swath of the cavern ceiling suddenly collapsed 2742 | -10/Subcaves | Visited 4L-MR0's lab 2747 | -10/Subcaves | Identified Arachnoskeleton 2755 | -10/Subcaves | Found Arachnoskeleton 2839 | -10/Subcaves | Core integrity fell below 20% 3081 | -10/Subcaves | Destroyed by Piercing Trap Last Messages --------------- 02753_ 4L-MR0 mumbles: "I'm surprised some of them are even willing to come in here given their fear of my usual visitors." 02754_ Dropped Autogun. 02754_ Dropped Rocket Launcher. 02755_ Dropped Hrd. Light Armor Plating. 02755_ Acquired Arachnoskeleton. 02762_ 4L-MR0 mumbles: "Who knows where that last prototype ended up, probably tossed aside somewhere as if it were useless junk..." 02819_ Triggered Piercing Trap. 02819_ Spikes shoot up from the floor. 02819_ Critical hit (Impale). 02838_ Triggered Shrapnel Trap. 02838_ An expanding cloud of shrapnel blasts out in all directions. 02915_ Acquired derelict log, extracted data. Data stored: Storage entrances (x1). 03081_ Triggered Piercing Trap. 03081_ Spikes shoot up from the floor. Map ----- +----------------------------------------------------+ | ?????????????????????????????????????????????????? | | ?????????????????????????????????????????????????? | | ?????????????????????????????????????????????????? | | #????????????????????????????????????????????????? | | ##########???????????????????####????????????????? | | ##"" ][ #???????????????????# ##???????????????? | | "# !###???????????????????# ##??????????????? | | "+ "X"""#???????????????????#" #??????????????? | | #"""""""#???????????????????#" #??????????????? | | ##########???????????????????# ##??????????????? | | ##???????????????????????????##" ###?????????????? | | ######???????????????????????## ""#?????????????? | | # #????????????????????????# "##?????????????? | | ##???????????????????????##" #?????????????? | | ## "#??#######??????????????#"" "#?????????????? | | ##" "#### ##?????????????## "##?????????????? | | " ## #????????####?# #?????????????? | | #???????##^ #### ##?????????????? | | ### #####???????# ^ # ##?????????????? | | ### #???????????# ^ #?????????????? | | ## #??????????## ##?????????????? | | ## #?????????## #?????????????? | | ## #?????????# ## ^ #?????????????? | | ### ##???????## ^ ####" #?????????????? | | ##?# #???????# ###"" #?????????????? | | ##??# #??####?# @ #" "#?????????????? | | #??## #### ### ^ ; "#?????????????? | | #?## ## ## ^ ##;;;;;##?????????????? | | ### ^ #########??????????????? | | ### #??????????????????????? | | ##?### # ^ #??????????????????????? | | ## #????###### ### ###??????????????????????? | | ##### #?????????### #?###????????????????????????? | | ?????##???????????###????????????????????????????? | | ?????????????????????????????????????????????????? | | ?????????????????????????????????????????????????? | | ?????????????????????????????????????????????????? | | ?????????????????????????????????????????????????? | | ?????????????????????????????????????????????????? | | ?????????????????????????????????????????????????? | | ?????????????????????????????????????????????????? | | ?????????????????????????????????????????????????? | | ?????????????????????????????????????????????????? | | ?????????????????????????????????????????????????? | | ?????????????????????????????????????????????????? | | ?????????????????????????????????????????????????? | | ?????????????????????????????????????????????????? | | ?????????????????????????????????????????????????? | | | | | +----------------------------------------------------+ Best States ------------- Heat Dissipation 25 Energy Generation 10 Energy Capacity 250 Matter Stores 300 Matter Capacity 300 Sight Range 16 Robot Scan Range 14 Terrain Scan Density 10 Armor Coverage 150 Evasion (%) 40 Recoil Reduction 2 Item Schematics ----------------- None Robot Schematics ------------------ None Fabricated ------------ Nothing Alien Tech Used ----------------- None Achievements -------------- None Challenges ------------ None Game ------ Seed GammaAblativeChronowheel Manual? 0 Play Time 00:19:39 Cumulative 382.7 hours Start 2024.03.17 @ 03:17:55 End 2024.03.17 @ 03:37:27 Sessions 1 Manual Loads 0 Difficulty Rogue Special Mode None Game No. 253 Rogue 230 Adventurer 6 Explorer 17 Win Type - Total 29 Types 21/0/4/1/0/1/1/1/0 Lore% 92 Gallery% 95 Achievement% 79 Wizard Run 0 Options --------- Layout 1 ASCII 0 Keyboard 0 Movement Numpad Keybinds 0 Fullscreen 1 Font 16/TamsynBold Map View 55x38 Zoom Use 0% Tactical HUD 1 Map Filters NONE Filters NONE Steam 1 RUN: 172f64e9-1f0e-4778-bb7a-9f673102cd87